Cogmind - Beta 10.2 @@@ ROGUE MODE // 2021.02.10 @ 23:29:35 Player: Intraloper Result: Destroyed by D-53 Grenadier with Mini Grenade Launcher Performance ------------- Evolutions (1) 500 Regions Visited (3) 600 Robots Destroyed (16) 80 Value Destroyed (408) 408 Prototype IDs (0) 0 Alien Tech Used (0) 0 Bonus (0) 0 TOTAL SCORE: 1588 Bonus ------- None Cogmind --------- Core Integrity 0/400 Matter 179/300 Energy 74/100 System Corruption 0% Temperature Cool (0) Movement Core (550) Ox10 Location -9/Mines Parts ------- > --- POWER (1) -------- (None) > --- PROPULSION (3) --- (None) > --- UTILITY (3) ------ Medium Storage Unit Large Storage Unit Transport Network Coupler > --- WEAPON (2) ------- Heavy Assault Rifle Rocket Launcher > --- INVENTORY (14) --- Aluminum Leg Aluminum Leg Aluminum Leg Aluminum Leg Aluminum Leg Aluminum Leg Large Storage Unit Terrain Scanner Shotgun Peak State ------------ > --- POWER ------------ Ion Engine > --- PROPULSION ------- Aluminum Leg Aluminum Leg Aluminum Leg > --- UTILITY ---------- Medium Storage Unit Large Storage Unit Transport Network Coupler > --- WEAPON ----------- Heavy Assault Rifle Heavy Assault Rifle > --- INVENTORY -------- Light Ion Engine Aluminum Leg Aluminum Leg Aluminum Leg Aluminum Leg Aluminum Leg Aluminum Leg Small Storage Unit Large Storage Unit Terrain Scanner Light Assault Rifle Shotgun Rocket Launcher Rocket Launcher [Rating: 12] Favorites ----------- Power Ion Engine Engine Ion Engine Propulsion Aluminum Leg Leg Aluminum Leg Utility Transport Network Coupler Device Terrain Scanner Storage Large Storage Unit Processor Transport Network Coupler Weapon Assault Rifle Ballistic Gun Assault Rifle Launcher Rocket Launcher Build | -11 -10 -9 -9 ------- Run | Scr Mat Mat Min Slots Evolved 2 | . . 2 . Power . | . . . . Propulsion 1 | . . 1 . Utility 1 | . . 1 . Weapon . | . . . . Parts Attached 25 | 6 5 10 4 Power 3 | 2 . . 1 Engine 3 | 2 . . 1 Core . | . . . . Reactor . | . . . . Propulsion 7 | 2 . 5 . Treads . | . . . . Leg 7 | 2 . 5 . Wheel . | . . . . Hover . | . . . . Flight . | . . . . Utility 6 | . 5 1 . Device 1 | . 1 . . Storage 4 | . 3 1 . Processor 1 | . 1 . . Hackware . | . . . . Protection . | . . . . Artifact . | . . . . Weapon 9 | 2 . 4 3 Energy Gun . | . . . . Energy Cannon . | . . . . Ballistic Gun 7 | 2 . 4 1 Ballistic Cannon . | . . . . Launcher 2 | . . . 2 Special Weapon . | . . . . Impact Weapon . | . . . . Slashing Weapon . | . . . . Piercing Weapon . | . . . . Special Melee Weapon . | . . . . Unidentified Prototypes . | . . . . Parts Lost 8 | . . . 8 Power 2 | . . . 2 Propulsion 3 | . . . 3 Utility . | . . . . Weapon 3 | . . . 3 Highest Loss Streak 7 | . . . 7 Average Slot Usage (%) 96 | . 94 100 94 Engine 11 | . 14 11 9 Leg 30 | . 28 33 29 Storage 16 | . 8 22 22 Processor 11 | . 12 11 11 Ballistic Gun 24 | . 28 22 20 Naked Turns . | . . . . Heaviest Build 35 | 9 25 35 35 Greatest Support 30 | 20 20 30 30 Greatest Overweight (x) 1 | . 1 1 1 Average Overweight (x) . | . . 1 1 Largest Inventory Capacity 14 | 4 10 14 14 Average Capacity 10 | 4 7 13 14 Most Carried 14 | 2 10 14 13 Average Carried 9 | . 7 11 12 Final Capacity 14 | 4 10 14 14 Final Carried 13 | 2 10 13 9 Class Distribution -------------------- 74% | Mutant 25% | Scavenger-Mutant Dominant Class ---------------- Mutant | -10/Materials Mutant | -9/Materials Scavenger-Mutant | -9/Mines Resources | -11 -10 -9 -9 ----------- Run | Scr Mat Mat Min Matter Collected 632 | 278 140 201 13 Remotely . | . . . . Salvage Created 618 | 49 228 226 115 Parts 37 | 2 19 15 1 Haulers Intercepted . | . . . . Recyclers Shooed . | . . . . Parts Field Recycled . | . . . . Retrieved Matter . | . . . . Parts Self-Destructed . | . . . . Prevented . | . . . . Kills | -11 -10 -9 -9 ------- Run | Scr Mat Mat Min Combat Hostiles Destroyed 17 | 1 7 5 4 Guns 17 | 1 7 5 4 Classes Destroyed 7 | 1 2 1 3 Builder 1 | . . . 1 Recycler 1 | . . . 1 Watcher 1 | . 1 . . Swarmer 3 | . 3 . . Grunt 9 | 1 4 4 . Sentry 1 | . . 1 . Assembled 4 | . . . 4 Best Kill Streak 6 | 1 4 4 6 Combat Bots Only 4 | 1 3 4 4 Max Kills in Single Turn 2 | 1 1 1 2 Gunslinging . | . . . . Exploded . | . . . . Melee . | . . . . Uniques/NPCs Destroyed . | . . . . Combat | -11 -10 -9 -9 -------- Run | Scr Mat Mat Min Damage Taken 1495 | 34 140 167 1154 Core 434 | 11 11 44 368 Absorbed by Shields . | . . . . Core Remaining (%) 93 | 95 91 . . Volleys Fired 51 | 3 15 16 17 Largest 2 | 2 2 2 2 Hottest 56 | 40 40 46 56 Shots Fired 102 | 6 30 32 34 Gun 98 | 6 30 32 30 Cannon . | . . . . Launcher 4 | . . . 4 Special . | . . . . Kinetic 98 | 6 30 32 30 Thermal . | . . . . Explosive 4 | . . . 4 Electromagnetic . | . . . . Robot Hit Streak 16 | 5 12 14 16 Robot Miss Streak 3 | 1 2 2 3 Penetration Max . | . . . . Secondary Targets 2 | . . . 2 Max Gunslinging Chain 1 | . . . 1 Shots Hit Robots 74 | 5 25 25 19 Core Hits 36 | 2 11 9 14 Critical Hits . | . . . . Critical Kills . | . . . . Critical Parts Destroyed . | . . . . Melee Attacks . | . . . . Impact . | . . . . Slashing . | . . . . Piercing . | . . . . Sneak Attacks . | . . . . Combat Hostiles . | . . . . Follow-up Attacks . | . . . . Damage Inflicted 1178 | 59 323 349 447 Guns 1006 | 59 323 334 290 Cannons . | . . . . Explosions 157 | . . . 157 Melee . | . . . . Ramming 15 | . . 15 . Kinetic 1006 | 59 323 334 290 Thermal . | . . . . Explosive 157 | . . . 157 Electromagnetic . | . . . . Impact . | . . . . Slashing . | . . . . Piercing . | . . . . Highest Corruption 4 | . 4 . . Average Corruption 3 | . 3 . . Corruption Purged . | . . . . Effects 5 | . 5 . . Message Errors 2 | . 2 . . Matter Fused 1 | . 1 . . Data Loss (minor) 1 | . 1 . . Targeting Errors 1 | . 1 . . Overload Shots . | . . . . Overflow Damage 55 | . . . 55 Projectiles . | . . . . Explosions 55 | . . . 55 Melee . | . . . . Knockbacks . | . . . . Impact . | . . . . Kinetic . | . . . . Secondary . | . . . . Self-Inflicted Damage 45 | . . . 45 Shots 1 | . . . 1 Rammed . | . . . . Targets Rammed 2 | . . 2 . Kicked 2 | . . 2 . Crushed . | . . . . Highest Temperature 32 | . . . 32 Average Temperature 12 | . . . 12 Received Heat Transfer 388 | 18 60 90 220 Siege Activations . | . . . . Robots Corrupted . | . . . . Combat Hostiles . | . . . . Parts Fried . | . . . . Impact Corruptions . | . . . . Robots Melted . | . . . . Combat Hostiles . | . . . . Parts Melted . | . . . . Heat Transferred . | . . . . Parts Sabotaged . | . . . . Parts Stolen . | . . . . Parts Stripped . | . . . . Power Chain Reactions . | . . . . Missiles Intercepted . | . . . . Alert | -11 -10 -9 -9 ------- Run | Scr Mat Mat Min Peak Influence 190 | 20 190 145 15 Initial 13 | . 13 . . Average 65 | 3 115 50 . Maximum Alert Level . | . . . . Low Security (%) 100 | 100 100 100 100 Level 1 . | . . . . Level 2 . | . . . . Level 3 . | . . . . Level 4 . | . . . . Level 5 . | . . . . High Security . | . . . . Max Security . | . . . . Squads Dispatched 4 | . 2 2 . Investigation 1 | . 1 . . Extermination . | . . . . Reinforcement 3 | . 1 2 . Assault . | . . . . Garrison . | . . . . Intercept . | . . . . Construction Impeded . | . . . . Haulers Reinforced . | . . . . Stealth | -11 -10 -9 -9 --------- Run | Scr Mat Mat Min Distress Signals 4 | . 1 2 1 Communications Jammed . | . . . . Distress Signals . | . . . . Times Spotted 34 | 1 10 13 10 Peak Tracking Total 7 | 1 3 7 5 Tactical Retreats 1 | . . . 1 Traps | -11 -10 -9 -9 ------- Run | Scr Mat Mat Min Traps Triggered 3 | . 3 . . Indirectly . | . . . . Trap Hack Attempts . | . . . . Triggered . | . . . . Disarmed . | . . . . Reprogrammed . | . . . . Reused . | . . . . Traps Extracted . | . . . . Installed . | . . . . Triggered . | . . . . Machines | -11 -10 -9 -9 ---------- Run | Scr Mat Mat Min Machines Disabled . | . . . . Max in Single Turn . | . . . . Machines Sabotaged . | . . . . Garrisons Compromised . | . . . . Overloaded Fab Kills . | . . . . Fab Network Shutdowns . | . . . . Hacking | -11 -10 -9 -9 --------- Run | Scr Mat Mat Min Machines Accessed 1 | . . 1 . Terminals . | . . . . Fabricators . | . . . . Repair Stations . | . . . . Recycling Units 1 | . . 1 . Scanalyzers . | . . . . Garrison Access . | . . . . Total Hacks 1 | . . 1 . Successful 1 | . . 1 . Failed . | . . . . Catastrophic . | . . . . Database Lockouts . | . . . . Manual . | . . . . Terminals . | . . . . Fabricators . | . . . . Repair Stations . | . . . . Recycling Units 1 | . . 1 . Scanalyzers . | . . . . Garrison Access . | . . . . Terminal Hacks . | . . . . Fabricator Hacks . | . . . . Repair Station Hacks . | . . . . Recycling Unit Hacks 1 | . . 1 . Report Inventory 1 | . . 1 . Scanalyzer . | . . . . Garrison Access Hacks . | . . . . Unauthorized Hacks . | . . . . Terminals . | . . . . Fabricators . | . . . . Repair Stations . | . . . . Recycling Units . | . . . . Scanalyzers . | . . . . Garrison Access . | . . . . Data Cores Recovered . | . . . . Used . | . . . . Hacking Detections . | . . . . Full Trace Events . | . . . . Feedback Events . | . . . . Feedback Blocked . | . . . . Robot Schematics Acquired . | . . . . Robots Built . | . . . . Matter . | . . . . Time . | . . . . Total Robot Build Rating . | . . . . Part Schematics Acquired . | . . . . Parts Built . | . . . . Matter . | . . . . Time . | . . . . Total Part Build Rating . | . . . . Parts Repaired . | . . . . Time . | . . . . Parts Recycled . | . . . . Recycled Matter . | . . . . Retrieved Matter . | . . . . Retrieved Components . | . . . . Parts Scanalyzed . | . . . . Part Schematics Acquired . | . . . . Parts Damaged . | . . . . Bothacking | -11 -10 -9 -9 ------------ Run | Scr Mat Mat Min Used RIF Installer . | . . . . Robots Hacked . | . . . . Non-combat . | . . . . Combat . | . . . . Robot Hacks Applied . | . . . . Relay Couplers Released . | . . . . Robots Rewired . | . . . . Allies Hacked . | . . . . Hacks Repelled . | . . . . Allies | -11 -10 -9 -9 -------- Run | Scr Mat Mat Min Total Allies . | . . . . Largest Group . | . . . . Highest-Rated Group . | . . . . Highest-Rated Ally . | . . . . Total Orders . | . . . . Ally Attacks . | . . . . Total Damage . | . . . . Kills . | . . . . Allies Corrupted . | . . . . Allies Melted . | . . . . Intel | -11 -10 -9 -9 ------- Run | Scr Mat Mat Min Robot Analysis Total . | . . . . Derelict Logs Recovered . | . . . . Drone Launches . | . . . . Drone Recoveries . | . . . . Exploration | -11 -10 -9 -9 ------------- Run | Scr Mat Mat Min Turns Passed 1130 | 83 444 434 169 Spaces Moved 602 | 65 265 197 75 Core 19 | 19 . . . Treads . | . . . . Legs 583 | 46 265 197 75 Wheels . | . . . . Hover . | . . . . Flight . | . . . . Fastest Speed 50 | 50 120 150 150 Average Speed 137 | 99 134 150 150 Slowest Speed 150 | 120 150 150 150 Overloaded Moves . | . . . . Propulsion Burnouts . | . . . . Robots Hopped . | . . . . Cave-ins Triggered . | . . . . Exploration Rate (%) 24 | 8 47 17 24 Regions Visited 3 Branch Regions 1 Pre-discovered Areas 1 | . . . 1 Known Exits Taken . | . . . . Unknown Exits Taken 3 | 1 1 1 . Scrap Searched 1 | . . . 1 Spaces Dug . | . . . . Terrain Destroyed 17 | . . . 17 Melee . | . . . . Projectile . | . . . . AOE 17 | . . . 17 Terrain Rammed . | . . . . Walls Destroyed . | . . . . Machines Disabled . | . . . . Actions | -11 -10 -9 -9 --------- Run | Scr Mat Mat Min Total 800 | 74 322 305 99 Wait 101 | . 27 71 3 Move 599 | 64 264 196 75 Hop . | . . . . Pick Up 14 | 1 9 4 . Fast Attach 7 | 5 2 . . Attach 6 | . . 2 4 Detach . | . . . . Swap 12 | 1 3 8 . Drop 8 | . 2 6 . Fire 51 | 3 15 16 17 Melee . | . . . . Ram . | . . . . Kick 2 | . . 2 . Crush . | . . . . Escape Stasis . | . . . . Rewire . | . . . . Trap . | . . . . Miscellaneous . | . . . . Route ------- -11/Scrapyard -10/Materials (discovered 2 exits: *Mat / [*Min]) -9/Materials -9/Mines History --------- Turn | Location | Event 2 | -11/Scrapyard | Met Revision 17 56 | -11/Scrapyard | Discovered new exit (range 8) 84 | -11/Scrapyard | Entered Materials 314 | -10/Materials | Build established: Mutant 384 | -10/Materials | Discovered new exit (range 10) 487 | -10/Materials | Discovered new exit (range 14) 528 | -10/Materials | Entered another Materials area 528 | -9/Materials | Evolved 2 slots: Propulsion x1, Utility x1 911 | -9/Materials | Discovered new exit (range 14) 962 | -9/Materials | Entered Mines 1032 | -9/Mines | Learned location of Storage (-8) 1055 | -9/Mines | Assembled infested the area 1060 | -9/Mines | Assisted by a Guerilla fighting off Assembled 1123 | -9/Mines | Core integrity fell below 50% 1128 | -9/Mines | Core integrity fell below 20% 1131 | -9/Mines | Destroyed by D-53 Grenadier with Mini Grenade Launcher Last Messages --------------- 01107_ 58-8P6(g) slips back into the shadows. 01114_ Lgt. Ion Engine destroyed. 01114_ Aluminum Leg destroyed. 01114_ as-04756 destroyed. 01115_ The unstable cave ceiling collapses. 01116_ Hvy. Assault Rifle destroyed. 01119_ U-05 Engineer lays Concrete. 01119_ Aluminum Leg destroyed. 01119_ Destroyed Lgt. Ion Engine. 01119_ Destroyed Tractor Beam. 01120_ The unstable cave ceiling collapses. 01120_ U-05 Engineer lays Concrete. 01121_ Aluminum Leg destroyed. 01122_ U-05 Engineer destroyed. 01122_ R-06 Scavenger destroyed. 01123_ The unstable cave ceiling collapses. 01125_ Hvy. Assault Rifle destroyed. 01125_ Destroyed Hvy. Assault Rifle. 01126_ Rocket Launcher destroyed. 01127_ The unstable cave ceiling collapses. Map ----- +----------------------------------------------------+ | ?????????????????????????????????????????????????? | | ?????????????????????????????????????????????????? | | ?????????????????????????????????????????????????? | | ?????????????????????????????????????????????????? | | ?????????????????????????????????### ???????????? | | ????????????????????????????????# # #??????????? | | ???????????????????????????????# #??????????? | | ?????????????????????????????## ##?????????? | | ????????????????????????????## ##????????? | | ???????????????????????????## #????????? | | ?????????????????????????# ?????????? | | ???????????????#??????### % ??????????? | | ???????????????? ##### = ????????????? | | ???????????????# *[ ?????????????? | | ?????????????????? !%% ##????????????? | | ?????????????????????# % %! #????????????? | | ????????????????????## ** #????????????? | | ???????????????????## #?????????????? | | ???????????????????# #??????????????? | | ???????????????????# dd ???????????????? | | ???????????????????## % #????????????????? | | ????????????????????## #????????????????? | | ????????????????????# #????????????????? | | ????????????????????# # #????????????????? | | ????????????????# ### #????????????????? | | ????????????????# @ #????????????????? | | ????????????????# #????????????????? | | ????????????????#### #?????????? ##?? | | ???????????????????# # ######### ??? | | ???????????????????# ## ^ #?? | | ???????????????????# # ## # #^ #?? | | ???????????????????# ##########^# #^#?#### ?? | | ??????????????????? ???????## #^ #???????????? | | ??????????????????#????????# ^## ###?????????? | | ???????????????????????????# #?????????? | | ???????????????????????????## ##?????????? | | ????????????????????????????### ### #??????????? | | ??????????????????????????????#####?# #??????????? | | ????????????????????????????????????# #??????????? | | ????????????????????????????????????# #??????????? | | ????????????????????????????????????# #??????????? | | ????????????????????????????????????# #??????????? | | ????????????????????????????????????# #??????????? | | ????????????????????????????????????# #??????????? | | ????????????????????????????????????# #??????????? | | ????????????????????????????????????# #??????????? | | ????????????????????????????????????#!############ | | ????????????????????????????????????#]%=/ # | | ????????????????????????????????????############ # | | ???????????????????????????????????????????????# # | +----------------------------------------------------+ Best States ------------- Heat Dissipation 28 Energy Generation 10 Energy Capacity 250 Matter Stores 300 Matter Capacity 300 Sight Range 16 Terrain Scan Range 14 Terrain Scan Density 10 Evasion (%) 50 Item Schematics ----------------- None Robot Schematics ------------------ None Fabricated ------------ Nothing Alien Tech Used ----------------- None Achievements -------------- None Challenges ------------ None Game ------ Seed ThermalDroneSabre Manual? 0 Play Time 00:15:16 Cumulative 2.8 hours Start 2021.02.10 @ 23:16:24 End 2021.02.10 @ 23:29:35 Sessions 1 Manual Loads 0 Difficulty Rogue Special Mode None Game No. 4 Rogue 4 Adventurer 0 Explorer 0 Win Type - Total 0 Types 0/0/0/0/0/0/0/0/0 Lore% 3 Gallery% 8 Achievement% 7 Wizard Run 0 Options --------- ASCII 0 Keyboard 0 Movement Numpad Keybinds 0 Fullscreen 1 Font 24/Terminus Map View 76x50 Tactical HUD 1 Map Filters NONE Filters NONE Steam 1 RUN: f57a9a9e-49bc-4ac8-99c3-0e4d27e77c7d